[Event "Slovakia Chess Open 2024"]
[Site "Modra"]
[Date "2024.03.03"]
[Round "4.12"]
[White "Nosal, Tobias"]
[Black "Mruskovic, Ondrej"]
[Result "1-0"]
[ECO "D00"]
[WhiteElo "1773"]
[BlackElo "1510"]
[Annotator "NA RC"]
[PlyCount "116"]
[EventDate "2024.02.29"]
[EventType "swiss"]
[EventCountry "SVK"]
[SourceTitle "playchess.com"]
[Source "ChessBase"]
[SourceQuality "1"]
[TimeControl "5400+30"]

1. d4 {[%emt 0:00:06]} e6 {[%emt 0:00:01]} 2. Nc3 {[%emt 0:00:42]} d5 {[%emt 0:00:19]} 3. Bf4 {[%emt 0:00:33]} Bd6 {[%emt 0:01:19]} 4. e3 {[%emt 0:00:38]} Bxf4 {[%emt 0:00:20]} 5. exf4 {[%emt 0:00:07]} Nc6 {[%emt 0:00:59]} 6. Nf3 {[%emt 0:03:07]} Qf6 {[%emt 0:01:00]} 7. Qd2 {[%emt 0:04:23]} a6 {[%emt 0:00:35]} 8. Bd3 {[%emt 0:08:19]} Nge7 {[%emt 0:01:38]} 9. O-O {[%emt 0:03:38]} Bd7 {[%emt 0:01:40]} 10. Ne2 {[%emt 0:04:25]} Na7 {[%emt 0:05:08]} 11. a4 {[%emt 0:14:45]} Nac6 {[%emt 0:01:38]} 12. b4 {[%emt 0:06:29]} Nf5 {[%emt 0:07:32]} 13. c3 {[%emt 0:06:15]} O-O {[%emt 0:04:21]} 14. Ne5 {[%emt 0:06:12]} Nxe5 {[%emt 0:01:41]} 15. fxe5 {[%emt 0:01:14]} Qe7 {[%emt 0:03:53]} 16. Ng3 {[%emt 0:06:52]} Nxg3 {[%emt 0:02:53]} 17. hxg3 {[%emt 0:01:54]} Ra7 {[%emt 0:05:44]} 18. f3 {[%emt 0:05:16]} b6 {[%emt 0:02:10]} 19. Kf2 {[%emt 0:04:08]} a5 {[%emt 0:01:07]} 20. Rh1 {[%emt 0:02:02]} f5 {[%emt 0:03:56]} 21. exf6 {[%emt 0:02:31]} Qxf6 {[%emt 0:01:08]} 22. Bxh7+ {[%emt 0:03:44]} Kf7 {[%emt 0:00:14]} 23. b5 {[%emt 0:03:34]} c6 {[%emt 0:00:47]} 24. Rh4 {[%emt 0:04:04]} Ke8 {[%emt 0:02:14]} 25. Bd3 {[%emt 0:01:38]} Rc7 {[%emt 0:02:28]} 26. Rah1 {[%emt 0:01:06]} c5 {[%emt 0:03:31]} 27. Rf4 {[%emt 0:01:09]} Qe7 {[%emt 0:00:40]} 28. Bg6+ {[%emt 0:02:10]} Kd8 {[%emt 0:00:24]} 29. Rhh4 {[%emt 0:00:56]} Rxf4 {[%emt 0:01:33]} 30. Rxf4 {[%emt 0:00:30]} Be8 {[%emt 0:00:15]} 31. Bxe8 {[%emt 0:00:58]} Qxe8 {[%emt 0:00:13]} 32. Rg4 {[%emt 0:00:59]} c4 {[%emt 0:04:08]} 33. Qg5+ {[%emt 0:00:29]} Kc8 {[%emt 0:00:54]} 34. Qe5 {[%emt 0:00:36]} Qf7 {[%emt 0:01:29]} 35. Qd6 {[%emt 0:00:34]} Kb7 {[%emt 0:01:07]} 36. Qe5 {[%emt 0:01:34]} Rd7 {[%emt 0:02:05]} 37. Qg5 {[%emt 0:00:42]} Qf6 {[%emt 0:02:37]} 38. Ke3 {[%emt 0:00:35]} Re7 {[%emt 0:01:50]} 39. Qxf6 {[%emt 0:00:32]} gxf6 {[%emt 0:00:16]} 40. Rg6 {[%emt 0:00:16]} Rf7 {[%emt 0:00:56]} 41. Kf4 {[%emt 0:00:21]} Kc7 {[%emt 0:00:21]} 42. Rg8 {[%emt 0:00:26]} Re7 {[%emt 0:00:51]} 43. Rf8 {[%emt 0:00:31]} e5+ {[%emt 0:00:41]} 44. Ke3 {[%emt 0:00:49]} Re6 {[%emt 0:01:36]} 45. dxe5 {[%emt 0:00:36]} fxe5 {[%emt 0:00:23]} 46. g4 {[%emt 0:00:30]} Rd6 {[%emt 0:00:36]} 47. Rf7+ {[%emt 0:00:19]} Kc8 {[%emt 0:00:20]} 48. g5 {[%emt 0:00:37]} d4+ {[%emt 0:00:13]} 49. cxd4 {[%emt 0:00:25]} exd4+ {[%emt 0:01:36]} 50. Kd2 {[%emt 0:00:13]} d3 {[%emt 0:00:45]} 51. Rf6 {[%emt 0:00:47]} Rd4 {[%emt 0:07:27]} 52. g6 {[%emt 0:00:29]} c3+ {[%emt 0:00:33]} 53. Kxc3 {[%emt 0:00:36]} d2 {[%emt 0:00:20]} 54. g7 {[%emt 0:00:34]} d1=Q {[%emt 0:00:44]} 55. g8=Q+ {[%emt 0:00:16]} Rd8 {[%emt 0:00:36]} 56. Qe6+ {[%emt 0:00:30]} Rd7 {[%emt 0:02:40]} 57. Rf8+ {[%emt 0:00:31]} Kb7 {[%emt 0:00:31]} 58. Qc6+ {[%emt 0:00:11]} Ka7 {[%emt 0:00:17]} 1-0

[Event "Slovakia Chess Open 2024"]
[Site "Modra"]
[Date "2024.03.03"]
[Round "4.14"]
[White "Veres, Alex"]
[Black "Pikulik, Roman"]
[Result "1-0"]
[ECO "B35"]
[WhiteElo "1584"]
[BlackElo "1675"]
[Annotator "NA RC"]
[PlyCount "89"]
[EventDate "2024.02.29"]
[EventType "swiss"]
[EventCountry "SVK"]
[SourceTitle "playchess.com"]
[Source "ChessBase"]
[SourceQuality "1"]
[TimeControl "5400+30"]

1. e4 {[%emt 0:00:08]} c5 {[%emt 0:00:08]} 2. Nf3 {[%emt 0:00:15]} Nc6 {[%emt 0:00:09]} 3. d4 {[%emt 0:00:13]} cxd4 {[%emt 0:00:13]} 4. Nxd4 {[%emt 0:00:04]} g6 {[%emt 0:01:21]} 5. Nc3 {[%emt 0:01:00]} Bg7 {[%emt 0:00:09]} 6. Be3 {[%emt 0:00:22]} Nf6 {[%emt 0:00:32]} 7. Bc4 {[%emt 0:01:43]} Qa5 {[%emt 0:06:46]} 8. Nb3 {[%emt 0:07:57]} Qc7 {[%emt 0:06:02]} 9. O-O {[%emt 0:07:07]} d6 {[%emt 0:01:21]} 10. f3 {[%emt 0:07:43]} O-O {[%emt 0:00:18]} 11. Qd2 {[%emt 0:05:52]} Nb4 {[%emt 0:19:03]} 12. Bd3 {[%emt 0:00:28]} Nxd3 {[%emt 0:03:18]} 13. cxd3 {[%emt 0:00:08]} Be6 {[%emt 0:01:16]} 14. Nd4 {[%emt 0:03:05]} a6 {[%emt 0:03:24]} 15. Rac1 {[%emt 0:02:09]} Qd8 {[%emt 0:03:26]} 16. Nxe6 {[%emt 0:02:23]} fxe6 {[%emt 0:00:11]} 17. d4 {[%emt 0:01:15]} e5 {[%emt 0:02:53]} 18. Ne2 {[%emt 0:03:42]} Rc8 {[%emt 0:00:37]} 19. Rxc8 {[%emt 0:01:47]} Qxc8 {[%emt 0:00:30]} 20. Rc1 {[%emt 0:00:07]} Qd7 {[%emt 0:01:13]} 21. dxe5 {[%emt 0:01:36]} Ne8 {[%emt 0:01:02]} 22. exd6 {[%emt 0:04:35]} Nxd6 {[%emt 0:00:04]} 23. Qd5+ {[%emt 0:04:59]} Kh8 {[%emt 0:00:14]} 24. e5 {[%emt 0:01:02]} Rf5 {[%emt 0:01:41]} 25. f4 {[%emt 0:01:14]} Qb5 {[%emt 0:00:18]} 26. Qxb5 {[%emt 0:07:48]} Nxb5 {[%emt 0:00:10]} 27. Rc8+ {[%emt 0:01:55]} Rf8 {[%emt 0:00:10]} 28. Rxf8+ {[%emt 0:00:08]} Bxf8 {[%emt 0:00:03]} 29. Nd4 {[%emt 0:02:43]} Nc7 {[%emt 0:00:24]} 30. Kf2 {[%emt 0:02:56]} e6 {[%emt 0:00:19]} 31. Nb3 {[%emt 0:08:36]} Nd5 {[%emt 0:03:16]} 32. g3 {[%emt 0:01:24]} Kg8 {[%emt 0:00:09]} 33. Bc5 {[%emt 0:01:23]} b6 {[%emt 0:00:32]} 34. Bxf8 {[%emt 0:01:47]} Kxf8 {[%emt 0:00:30]} 35. Ke2 {[%emt 0:00:23]} Ke7 {[%emt 0:00:53]} 36. a3 {[%emt 0:01:46]} Kd7 {[%emt 0:00:56]} 37. Kd3 {[%emt 0:00:14]} a5 {[%emt 0:00:32]} 38. Ke4 {[%emt 0:01:09]} Ne7 {[%emt 0:01:00]} 39. g4 {[%emt 0:01:03]} Kc6 {[%emt 0:01:42]} 40. Nd4+ {[%emt 0:00:55]} Kd7 {[%emt 0:02:42]} 41. h4 {[%emt 0:00:46]} Nc6 {[%emt 0:01:13]} 42. Nxc6 {[%emt 0:00:16]} Kxc6 {[%emt 0:00:21]} 43. f5 {[%emt 0:00:13]} gxf5+ {[%emt 0:00:09]} 44. gxf5 {[%emt 0:00:05]} Kd7 {[%emt 0:00:11]} 45. fxe6+ {[%emt 0:03:02]} 1-0

[Event "Slovakia Chess Open 2024"]
[Site "Modra"]
[Date "2024.03.03"]
[Round "4.15"]
[White "Li, Geng Hui"]
[Black "Gonda, Jan"]
[Result "1-0"]
[ECO "D20"]
[WhiteElo "1555"]
[BlackElo "1657"]
[Annotator "NA RC"]
[PlyCount "41"]
[EventDate "2024.02.29"]
[EventType "swiss"]
[EventCountry "SVK"]
[SourceTitle "playchess.com"]
[Source "ChessBase"]
[SourceQuality "1"]
[TimeControl "5400+30"]

1. d4 {[%emt 0:00:26]} d5 {[%emt 0:00:20]} 2. c4 {[%emt 0:00:11]} dxc4 {[%emt 0:00:14]} 3. e4 {[%emt 0:01:02]} e6 {[%emt 0:00:07]} 4. Bxc4 {[%emt 0:00:27]} a6 {[%emt 0:00:06]} 5. Nf3 {[%emt 0:00:49]} b5 {[%emt 0:00:08]} 6. Bb3 {[%emt 0:00:10]} Bb7 {[%emt 0:00:13]} 7. Bc2 {[%emt 0:01:52]} c5 {[%emt 0:00:16]} 8. a4 {[%emt 0:02:18]} b4 {[%emt 0:00:58]} 9. Be3 {[%emt 0:05:29]} cxd4 {[%emt 0:00:51]} 10. Bxd4 {[%emt 0:08:39]} Nf6 {[%emt 0:00:42]} 11. Nbd2 {[%emt 0:08:26]} Nc6 {[%emt 0:00:50]} 12. Be3 {[%emt 0:06:41]} Be7 {[%emt 0:02:26]} 13. h3 {[%emt 0:02:16]} O-O {[%emt 0:00:14]} 14. e5 {[%emt 0:00:23]} Nd5 {[%emt 0:02:26]} 15. Qe2 {[%emt 0:04:10]} Rc8 {[%emt 0:00:22]} 16. h4 {[%emt 0:03:53]} Qc7 {[%emt 0:02:08]} 17. Bxh7+ {[%emt 0:00:27]} Kxh7 {[%emt 0:01:31]} 18. Ng5+ {[%emt 0:00:20]} Kg8 {[%emt 0:00:22]} 19. Qh5 {[%emt 0:00:18]} Bxg5 {[%emt 0:00:31]} 20. hxg5 {[%emt 0:00:15]} f6 {[%emt 0:04:57]} 21. g6 {[%emt 0:00:25]} 1-0

[Event "Slovakia Chess Open 2024"]
[Site "Modra"]
[Date "2024.03.03"]
[Round "4.16"]
[White "Gecik Jergus"]
[Black "Smolka, Robert"]
[Result "0-1"]
[ECO "B34"]
[WhiteElo "1000"]
[BlackElo "1620"]
[Annotator "NA RC"]
[PlyCount "60"]
[EventDate "2024.02.29"]
[EventType "swiss"]
[EventCountry "SVK"]
[SourceTitle "playchess.com"]
[Source "ChessBase"]
[SourceQuality "1"]
[TimeControl "5400+30"]

1. e4 {[%emt 0:07:25]} c5 {[%emt 0:00:10]} 2. Nf3 {[%emt 0:00:38]} Nc6 {[%emt 0:00:40]} 3. d4 {[%emt 0:01:15]} cxd4 {[%emt 0:00:13]} 4. Nxd4 {[%emt 0:00:16]} g6 {[%emt 0:00:31]} 5. Bc4 {[%emt 0:01:47]} Bg7 {[%emt 0:00:09]} 6. Be3 {[%emt 0:00:45]} Nf6 {[%emt 0:00:49]} 7. Qf3 {[%emt 0:02:36]} Ne5 {[%emt 0:02:11]} 8. Qe2 {[%emt 0:01:37]} Nxe4 {[%emt 0:09:36]} 9. Bb3 {[%emt 0:04:54]} Nc5 {[%emt 0:04:44]} 10. Bh6 {[%emt 0:06:03]} Qa5+ {[%emt 0:04:31]} 11. Nc3 {[%emt 0:01:57]} Bxh6 {[%emt 0:03:10]} 12. O-O {[%emt 0:02:59]} d6 {[%emt 0:03:58]} 13. Qb5+ {[%emt 0:06:06]} Qxb5 {[%emt 0:00:38]} 14. Ncxb5 {[%emt 0:00:17]} O-O {[%emt 0:00:37]} 15. Nc7 {[%emt 0:01:41]} Rb8 {[%emt 0:00:22]} 16. Nd5 {[%emt 0:00:37]} Re8 {[%emt 0:00:54]} 17. Nc7 {[%emt 0:00:50]} Nxb3 {[%emt 0:02:32]} 18. cxb3 {[%emt 0:00:15]} Rd8 {[%emt 0:00:40]} 19. Ncb5 {[%emt 0:02:51]} Nc6 {[%emt 0:01:00]} 20. Rfd1 {[%emt 0:01:51]} Bg4 {[%emt 0:02:11]} 21. Rd3 {[%emt 0:01:14]} Bg7 {[%emt 0:00:46]} 22. h3 {[%emt 0:01:48]} Bd7 {[%emt 0:01:31]} 23. Re1 {[%emt 0:01:41]} Nxd4 {[%emt 0:02:18]} 24. Nxd4 {[%emt 0:00:24]} e5 {[%emt 0:00:13]} 25. Nc2 {[%emt 0:01:02]} Bf5 {[%emt 0:00:22]} 26. Rd2 {[%emt 0:00:32]} Bh6 {[%emt 0:00:36]} 27. Rde2 {[%emt 0:00:31]} Bd3 {[%emt 0:00:13]} 28. f4 {[%emt 0:02:12]} Bxf4 {[%emt 0:00:31]} 29. Rf2 {[%emt 0:00:26]} Bg3 {[%emt 0:00:20]} 30. Rxf7 {[%emt 0:00:48]} Kxf7 {[%emt 0:00:13]} 0-1

[Event "Slovakia Chess Open 2024"]
[Site "Modra"]
[Date "2024.03.03"]
[Round "4.18"]
[White "Fratric, Jakub"]
[Black "Hanzel, Richard"]
[Result "1/2-1/2"]
[ECO "B13"]
[WhiteElo "1750"]
[BlackElo "1531"]
[Annotator "NA"]
[PlyCount "66"]
[EventDate "2024.02.29"]
[EventType "swiss"]
[EventCountry "SVK"]
[SourceTitle "playchess.com"]
[Source "ChessBase"]
[SourceQuality "1"]
[TimeControl "5400+30"]

1. e4 {[%emt 0:00:06]} c6 {[%emt 0:00:06]} 2. d4 {[%emt 0:00:09]} d5 {[%emt 0:00:05]} 3. exd5 {[%emt 0:00:23]} cxd5 {[%emt 0:00:07]} 4. Bd3 {[%emt 0:00:11]} Nc6 {[%emt 0:00:09]} 5. c3 {[%emt 0:00:10]} Nf6 {[%emt 0:00:07]} 6. Bf4 {[%emt 0:00:20]} Bg4 {[%emt 0:01:59]} 7. Qb3 {[%emt 0:00:10]} Qb6 {[%emt 0:01:43]} 8. Qxb6 {[%emt 0:00:19]} axb6 {[%emt 0:00:06]} 9. Na3 {[%emt 0:00:07]} Kd7 {[%emt 0:03:31]} 10. Nb5 {[%emt 0:01:13]} Ne8 {[%emt 0:03:16]} 11. h3 {[%emt 0:01:00]} Bh5 {[%emt 0:00:10]} 12. Bg3 {[%emt 0:09:05]} e6 {[%emt 0:02:12]} 13. Ne2 {[%emt 0:00:39]} Bxe2 {[%emt 0:02:23]} 14. Kxe2 {[%emt 0:00:27]} Nd6 {[%emt 0:02:47]} 15. a4 {[%emt 0:00:36]} Be7 {[%emt 0:03:51]} 16. b4 {[%emt 0:08:14]} h6 {[%emt 0:09:10]} 17. Rhe1 {[%emt 0:00:32]} Rhc8 {[%emt 0:01:33]} 18. Kf3 {[%emt 0:01:56]} Nxb5 {[%emt 0:04:30]} 19. Bxb5 {[%emt 0:06:21]} Bd6 {[%emt 0:02:55]} 20. Re3 {[%emt 0:03:15]} Bxg3 {[%emt 0:01:23]} 21. Kxg3 {[%emt 0:00:13]} Ke7 {[%emt 0:02:24]} 22. f4 {[%emt 0:02:42]} g6 {[%emt 0:02:48]} 23. Ra2 {[%emt 0:04:45]} Rc7 {[%emt 0:05:02]} 24. Kh4 {[%emt 0:05:54]} Rac8 {[%emt 0:06:05]} 25. Be2 {[%emt 0:00:51]} Nd8 {[%emt 0:02:19]} 26. Ra3 {[%emt 0:01:07]} Kd6 {[%emt 0:02:20]} 27. g4 {[%emt 0:02:08]} Re7 {[%emt 0:02:04]} 28. g5 {[%emt 0:05:22]} h5 {[%emt 0:02:08]} 29. Kg3 {[%emt 0:02:56]} Nc6 {[%emt 0:01:58]} 30. Kf2 {[%emt 0:02:21]} Nd8 {[%emt 0:00:34]} 31. Ke1 {[%emt 0:00:24]} Nc6 {[%emt 0:00:31]} 32. Kd2 {[%emt 0:01:00]} Nd8 {[%emt 0:01:14]} 33. Kc2 {[%emt 0:02:03]} Nc6 {[%emt 0:00:38]} 1/2-1/2

[Event "Slovakia Chess Open 2024"]
[Site "Modra"]
[Date "2024.03.03"]
[Round "5.1"]
[White "Krivoborodov, Egor"]
[Black "Stevik, Patrik"]
[Result "1/2-1/2"]
[ECO "D34"]
[WhiteElo "2555"]
[BlackElo "2167"]
[Annotator "RC"]
[PlyCount "26"]
[EventDate "2024.02.29"]
[EventType "swiss"]
[EventCountry "SVK"]
[SourceTitle "playchess.com"]
[Source "ChessBase"]
[SourceQuality "1"]
[TimeControl "5400+30"]

1. d4 {[%emt 0:11:43]} d5 {[%emt 0:00:01]} 2. Nf3 {[%emt 0:00:07]} c5 {[%emt 0:00:05]} 3. c4 {[%emt 0:00:08]} e6 {[%emt 0:00:10]} 4. cxd5 {[%emt 0:00:09]} exd5 {[%emt 0:00:01]} 5. Nc3 {[%emt 0:00:06]} Nf6 {[%emt 0:00:08]} 6. g3 {[%emt 0:00:03]} Nc6 {[%emt 0:00:05]} 7. Bg2 {[%emt 0:00:04]} Be7 {[%emt 0:00:03]} 8. O-O {[%emt 0:00:05]} O-O {[%emt 0:00:04]} 9. dxc5 {[%emt 0:00:09]} Bxc5 {[%emt 0:00:08]} 10. Na4 {[%emt 0:00:09]} Be7 {[%emt 0:00:20]} 11. Be3 {[%emt 0:00:09]} Bg4 {[%emt 0:00:40]} 12. Rc1 {[%emt 0:01:28]} Qd7 {[%emt 0:00:07]} 13. Nd4 {[%emt 0:27:31]} Rfe8 {[%emt 0:10:53]} 1/2-1/2

[Event "Slovakia Chess Open 2024"]
[Site "Modra"]
[Date "2024.03.03"]
[Round "5.2"]
[White "Mruskovic, Radoslav"]
[Black "Bochnicka, Vladimir"]
[Result "0-1"]
[ECO "B22"]
[WhiteElo "1933"]
[BlackElo "2413"]
[Annotator "ChessBase"]
[PlyCount "52"]
[EventDate "2024.02.29"]
[EventType "swiss"]
[EventCountry "SVK"]
[SourceTitle "playchess.com"]
[Source "ChessBase"]
[SourceQuality "1"]
[TimeControl "5400+30"]

1. e4 {[%emt 0:00:05]} c5 {[%emt 0:00:07]} 2. Nf3 {[%emt 0:00:05]} Nc6 {[%emt 0:00:06]} 3. c3 {[%emt 0:00:04]} Nf6 {[%emt 0:00:15]} 4. Qc2 {[%emt 0:00:48]} e5 {[%emt 0:00:32]} 5. Bc4 {[%emt 0:01:15]} Be7 {[%emt 0:00:22]} 6. d3 {[%emt 0:00:17]} O-O {[%emt 0:00:10]} 7. h3 {[%emt 0:00:26]} d5 {[%emt 0:00:30]} 8. exd5 {[%emt 0:05:07]} Nxd5 {[%emt 0:00:08]} 9. O-O {[%emt 0:02:29]} Bf5 {[%emt 0:01:08]} 10. Re1 {[%emt 0:02:02]} Qd6 {[%emt 0:02:44]} 11. Nbd2 {[%emt 0:01:50]} Nb6 {[%emt 0:03:11]} 12. Ne4 {[%emt 0:04:47]} Bxe4 {[%emt 0:00:23]} 13. Rxe4 {[%emt 0:00:29]} Nxc4 {[%emt 0:00:06]} 14. dxc4 {[%emt 0:01:25]} f5 {[%emt 0:00:13]} 15. Re1 {[%emt 0:01:43]} e4 {[%emt 0:00:12]} 16. Nh2 {[%emt 0:02:36]} Rad8 {[%emt 0:00:07]} 17. g3 {[%emt 0:02:09]} Qe6 {[%emt 0:01:50]} 18. b3 {[%emt 0:07:39]} Ne5 {[%emt 0:00:38]} 19. Be3 {[%emt 0:04:16]} Nd3 {[%emt 0:05:26]} 20. Re2 {[%emt 0:03:53]} g5 {[%emt 0:06:25]} 21. g4 {[%emt 0:04:27]} f4 {[%emt 0:00:48]} 22. Bc1 {[%emt 0:01:27]} f3 {[%emt 0:00:09]} 23. Re3 {[%emt 0:01:17]} Bd6 {[%emt 0:00:20]} 24. Nxf3 {[%emt 0:00:46]} Rxf3 {[%emt 0:00:10]} 25. Rxf3 {[%emt 0:00:27]} exf3 {[%emt 0:00:27]} 26. Bxg5 {[%emt 0:00:32]} Qe5 {[%emt 0:00:16]} 0-1

[Event "Slovakia Chess Open 2024"]
[Site "Modra"]
[Date "2024.03.03"]
[Round "5.3"]
[White "Shirinyan, Daniel"]
[Black "Galla, Richard"]
[Result "1-0"]
[ECO "D36"]
[WhiteElo "2177"]
[BlackElo "1975"]
[Annotator "RC"]
[PlyCount "99"]
[EventDate "2024.02.29"]
[EventType "swiss"]
[EventCountry "SVK"]
[SourceTitle "playchess.com"]
[Source "ChessBase"]
[SourceQuality "1"]
[TimeControl "5400+30"]

1. d4 {[%emt 0:00:32]} Nf6 {[%emt 0:00:18]} 2. c4 {[%emt 0:00:06]} e6 {[%emt 0:00:05]} 3. Nc3 {[%emt 0:00:15]} d5 {[%emt 0:00:05]} 4. cxd5 {[%emt 0:00:15]} exd5 {[%emt 0:00:07]} 5. Bg5 {[%emt 0:00:06]} Be7 {[%emt 0:01:22]} 6. e3 {[%emt 0:00:24]} c6 {[%emt 0:00:23]} 7. Qc2 {[%emt 0:00:10]} O-O {[%emt 0:02:37]} 8. Bd3 {[%emt 0:00:18]} Nbd7 {[%emt 0:00:08]} 9. Nge2 {[%emt 0:00:15]} Re8 {[%emt 0:01:01]} 10. O-O {[%emt 0:00:13]} h6 {[%emt 0:00:16]} 11. Bh4 {[%emt 0:00:53]} Ne4 {[%emt 0:00:42]} 12. Bxe7 {[%emt 0:00:43]} Qxe7 {[%emt 0:00:03]} 13. Rae1 {[%emt 0:03:00]} Nf8 {[%emt 0:11:01]} 14. f3 {[%emt 0:02:41]} Nxc3 {[%emt 0:01:54]} 15. Nxc3 {[%emt 0:01:32]} Qf6 {[%emt 0:00:33]} 16. Kh1 {[%emt 0:07:56]} Bd7 {[%emt 0:03:28]} 17. Qd2 {[%emt 0:03:16]} g6 {[%emt 0:04:20]} 18. Bc2 {[%emt 0:04:56]} Ne6 {[%emt 0:09:55]} 19. Rd1 {[%emt 0:00:35]} Rad8 {[%emt 0:08:56]} 20. e4 {[%emt 0:02:02]} dxe4 {[%emt 0:00:46]} 21. fxe4 {[%emt 0:00:06]} Qg7 {[%emt 0:01:50]} 22. Qf2 {[%emt 0:03:45]} b6 {[%emt 0:06:33]} 23. Bb3 {[%emt 0:14:02]} Bc8 {[%emt 0:05:54]} 24. e5 {[%emt 0:01:18]} Ba6 {[%emt 0:02:46]} 25. Rfe1 {[%emt 0:02:15]} g5 {[%emt 0:02:19]} 26. Ne4 {[%emt 0:00:50]} Re7 {[%emt 0:00:28]} 27. Nd6 {[%emt 0:21:54]} Rc7 {[%emt 0:07:35]} 28. Re3 {[%emt 0:12:36]} Nf4 {[%emt 0:05:32]} 29. g3 {[%emt 0:00:23]} Nd5 {[%emt 0:00:10]} 30. Rf3 {[%emt 0:00:25]} Bc8 {[%emt 0:02:28]} 31. Bxd5 {[%emt 0:04:01]} cxd5 {[%emt 0:00:04]} 32. Rc3 {[%emt 0:00:22]} Rxc3 {[%emt 0:00:54]} 33. bxc3 {[%emt 0:00:02]} Qg6 {[%emt 0:02:37]} 34. Rf1 {[%emt 0:00:51]} Be6 {[%emt 0:01:42]} 35. Qd2 {[%emt 0:01:21]} Kg7 {[%emt 0:01:17]} 36. Kg1 {[%emt 0:02:58]} Rf8 {[%emt 0:01:57]} 37. Rf6 {[%emt 0:01:56]} Qb1+ {[%emt 0:00:27]} 38. Kg2 {[%emt 0:00:03]} Rd8 {[%emt 0:04:41]} 39. Qf2 {[%emt 0:00:45]} Rxd6 {[%emt 0:00:06]} 40. exd6 {[%emt 0:00:23]} Qe4+ {[%emt 0:01:20]} 41. Kg1 {[%emt 0:02:23]} Qb1+ {[%emt 0:02:11]} 42. Qf1 {[%emt 0:00:08]} Qe4 {[%emt 0:00:55]} 43. Rf2 {[%emt 0:01:34]} Qg6 {[%emt 0:00:08]} 44. Qe1 {[%emt 0:05:07]} Kf8 {[%emt 0:03:39]} 45. Qe5 {[%emt 0:00:37]} Ke8 {[%emt 0:01:06]} 46. Qf6 {[%emt 0:00:31]} Qxf6 {[%emt 0:00:28]} 47. Rxf6 {[%emt 0:00:02]} Kd7 {[%emt 0:00:10]} 48. Rxh6 {[%emt 0:00:07]} Kxd6 {[%emt 0:00:19]} 49. Kf2 {[%emt 0:00:14]} Ke7 {[%emt 0:00:18]} 50. Rh8 {[%emt 0:00:05]} 1-0

[Event "Slovakia Chess Open 2024"]
[Site "Modra"]
[Date "2024.03.03"]
[Round "5.4"]
[White "Banas, Kamil"]
[Black "Novomeska, Karin"]
[Result "1-0"]
[ECO "B12"]
[WhiteElo "2162"]
[BlackElo "1929"]
[Annotator "RC"]
[PlyCount "51"]
[EventDate "2024.02.29"]
[EventType "swiss"]
[EventCountry "SVK"]
[SourceTitle "playchess.com"]
[Source "ChessBase"]
[SourceQuality "1"]
[TimeControl "5400+30"]

1. e4 {[%emt 0:00:06]} c6 {[%emt 0:00:04]} 2. d4 {[%emt 0:00:10]} d5 {[%emt 0:00:07]} 3. e5 {[%emt 0:00:17]} Bf5 {[%emt 0:00:18]} 4. Nf3 {[%emt 0:00:08]} e6 {[%emt 0:00:07]} 5. Be2 {[%emt 0:00:04]} Ne7 {[%emt 0:00:05]} 6. O-O {[%emt 0:00:12]} Bg6 {[%emt 0:00:35]} 7. Nbd2 {[%emt 0:01:03]} Nf5 {[%emt 0:00:44]} 8. c4 {[%emt 0:01:33]} Be7 {[%emt 0:03:21]} 9. c5 {[%emt 0:03:56]} b6 {[%emt 0:02:25]} 10. Nb3 {[%emt 0:04:38]} Nd7 {[%emt 0:04:20]} 11. g4 {[%emt 0:03:26]} Nh4 {[%emt 0:03:34]} 12. Nxh4 {[%emt 0:00:30]} Bxh4 {[%emt 0:00:03]} 13. f4 {[%emt 0:00:14]} f5 {[%emt 0:07:34]} 14. Bd3 {[%emt 0:13:31]} Be7 {[%emt 0:08:31]} 15. Be3 {[%emt 0:03:00]} h5 {[%emt 0:11:03]} 16. gxf5 {[%emt 0:00:32]} Bxf5 {[%emt 0:00:12]} 17. Bxf5 {[%emt 0:00:07]} exf5 {[%emt 0:00:04]} 18. Qc2 {[%emt 0:01:49]} g6 {[%emt 0:07:43]} 19. cxb6 {[%emt 0:00:27]} Qxb6 {[%emt 0:00:10]} 20. Kh1 {[%emt 0:01:18]} Kf7 {[%emt 0:00:42]} 21. Rg1 {[%emt 0:00:28]} Rhg8 {[%emt 0:00:38]} 22. Rg2 {[%emt 0:01:03]} Rac8 {[%emt 0:07:01]} 23. Rc1 {[%emt 0:05:05]} a5 {[%emt 0:03:09]} 24. Bf2 {[%emt 0:05:30]} Nf8 {[%emt 0:01:34]} 25. Rcg1 {[%emt 0:00:41]} Ne6 {[%emt 0:00:42]} 26. Rxg6 {[%emt 0:00:25]} 1-0

[Event "Slovakia Chess Open 2024"]
[Site "Modra"]
[Date "2024.03.03"]
[Round "5.5"]
[White "Melih, Mario"]
[Black "Oruzinsky, Juraj"]
[Result "1-0"]
[ECO "B78"]
[WhiteElo "1930"]
[BlackElo "2160"]
[Annotator "RC"]
[PlyCount "69"]
[EventDate "2024.02.29"]
[EventType "swiss"]
[EventCountry "SVK"]
[SourceTitle "playchess.com"]
[Source "ChessBase"]
[SourceQuality "1"]
[TimeControl "5400+30"]

1. e4 {[%emt 0:00:03]} c5 {[%emt 0:00:05]} 2. Nf3 {[%emt 0:00:15]} g6 {[%emt 0:00:08]} 3. d4 {[%emt 0:00:10]} cxd4 {[%emt 0:00:05]} 4. Nxd4 {[%emt 0:00:09]} Nc6 {[%emt 0:00:03]} 5. Be3 {[%emt 0:00:59]} Bg7 {[%emt 0:00:12]} 6. Nc3 {[%emt 0:00:43]} Nf6 {[%emt 0:00:11]} 7. Bc4 {[%emt 0:01:34]} O-O {[%emt 0:00:25]} 8. Bb3 {[%emt 0:00:37]} d6 {[%emt 0:00:37]} 9. f3 {[%emt 0:00:22]} Bd7 {[%emt 0:00:56]} 10. Qd2 {[%emt 0:00:26]} a6 {[%emt 0:00:29]} 11. O-O-O {[%emt 0:00:23]} Rc8 {[%emt 0:00:17]} 12. Kb1 {[%emt 0:00:17]} Ne5 {[%emt 0:03:12]} 13. Bh6 {[%emt 0:03:27]} Nc4 {[%emt 0:01:38]} 14. Bxc4 {[%emt 0:00:30]} Rxc4 {[%emt 0:00:06]} 15. Bxg7 {[%emt 0:01:08]} Kxg7 {[%emt 0:00:05]} 16. g4 {[%emt 0:02:23]} h5 {[%emt 0:05:43]} 17. gxh5 {[%emt 0:04:16]} Nxh5 {[%emt 0:02:16]} 18. Rhg1 {[%emt 0:01:39]} Qa5 {[%emt 0:03:43]} 19. Rg5 {[%emt 0:02:16]} Rc5 {[%emt 0:07:46]} 20. Nb3 {[%emt 0:01:43]} Rxg5 {[%emt 0:00:04]} 21. Nxa5 {[%emt 0:00:12]} Rxa5 {[%emt 0:00:06]} 22. Nd5 {[%emt 0:11:48]} Rxd5 {[%emt 0:02:10]} 23. Qxd5 {[%emt 0:01:50]} Bc6 {[%emt 0:00:10]} 24. Qg5 {[%emt 0:01:09]} f6 {[%emt 0:00:59]} 25. Qg4 {[%emt 0:02:42]} f5 {[%emt 0:01:34]} 26. exf5 {[%emt 0:05:05]} Rxf5 {[%emt 0:00:07]} 27. Rg1 {[%emt 0:00:20]} Rf6 {[%emt 0:01:54]} 28. Qxh5 {[%emt 0:00:44]} Bxf3 {[%emt 0:00:05]} 29. Qg5 {[%emt 0:00:48]} e5 {[%emt 0:00:33]} 30. h4 {[%emt 0:01:18]} Kf7 {[%emt 0:01:13]} 31. Rf1 {[%emt 0:01:47]} e4 {[%emt 0:00:08]} 32. Qd5+ {[%emt 0:00:17]} Kg7 {[%emt 0:00:10]} 33. Qxb7+ {[%emt 0:00:51]} Rf7 {[%emt 0:00:11]} 34. Qd5 {[%emt 0:00:14]} Rf6 {[%emt 0:00:26]} 35. b4 {[%emt 0:00:59]} 1-0